Workbook

Sheet Aufgabe 1
A1: Myear | B1: 250 | D1: Output:
A2: sigma1 | B2: 0.7 | D2: realized_vol1 | E2: 0.7194781765
A3: sigma2 | B3: 0.1 | D3: realized_vol2 | E3: 0.09959324565
A4: mu1 | B4: 0.15 | D4: realized_totalvol | E4: 0.5135989004
A5: mu2 | B5: 0.01
A6: S0 | B6: 100
A9: t_k | B9: S(t_k), mit diskreter SDE | C9: S(t_k), mit Lemma 13.3
A11: 0.004 | B11: 96.22526056 | C11: 96.20129235
A12: 0.008 | B12: 89.27518899 | C12: 89.41028238
A13: 0.012 | B13: 90.35990638 | C13: 90.41461802
A14: 0.016 | B14: 91.68642981 | C14: 91.66186271
A15: 0.02 | B15: 90.84098421 | C15: 90.73156808
A16: 0.024 | B16: 83.31707345 | C16: 83.43770264
A17: 0.028 | B17: 81.39340472 | C17: 81.45345457
A18: 0.032 | B18: 74.44535317 | C18: 74.71552728
A19: 0.036 | B19: 79.970956 | C19: 80.39335649
A20: 0.04 | B20: 80.08641399 | C20: 80.43064747
A21: 0.044 | B21: 77.56971402 | C21: 77.86608449
A22: 0.048 | B22: 79.10501698 | C22: 79.34481032
A23: 0.052 | B23: 74.8541924 | C23: 75.11998008
A24: 0.056 | B24: 75.89227236 | C24: 76.09439406
A25: 0.06 | B25: 76.54385577 | C25: 76.67534677
A26: 0.064 | B26: 73.80471402 | C26: 73.9075489
A27: 0.068 | B27: 77.41567037 | C27: 77.53743062
A28: 0.072 | B28: 78.11983371 | C28: 78.16927532
A29: 0.076 | B29: 83.90969314 | C29: 84.10043786
A30: 0.08 | B30: 80.34373691 | C30: 80.52230487
A31: 0.084 | B31: 78.983659 | C31: 79.09312748
A32: 0.088 | B32: 78.78647787 | C32: 78.81863921
A33: 0.092 | B33: 79.53654397 | C33: 79.49465177
A34: 0.096 | B34: 78.57383135 | C34: 78.46131629
A35: 0.1 | B35: 76.16703893 | C35: 76.01986976
A36: 0.104 | B36: 71.99272682 | C36: 71.89523897
A37: 0.108 | B37: 72.95259086 | C37: 72.78885385
A38: 0.112 | B38: 76.13591935 | C38: 75.96087578
A39: 0.116 | B39: 86.79049791 | C39: 87.28511684
A40: 0.12 | B40: 82.5456787 | C40: 83.0374046
A41: 0.124 | B41: 84.06890907 | C41: 84.50108253
A42: 0.128 | B42: 78.67790656 | C42: 79.17482242
A43: 0.132 | B43: 79.23705505 | C43: 79.66140013
A44: 0.136 | B44: 81.26294493 | C44: 81.6443492
A45: 0.14 | B45: 74.23450801 | C45: 74.80633322
A46: 0.144 | B46: 78.04262795 | C46: 78.66678842
A47: 0.148 | B47: 85.95893616 | C47: 86.97987405
A48: 0.152 | B48: 89.92891754 | C48: 91.00199104
A49: 0.156 | B49: 80.66936989 | C49: 82.0177921
A50: 0.16 | B50: 79.03197548 | C50: 80.29108576
A51: 0.164 | B51: 77.41321105 | C51: 78.5862073
A52: 0.168 | B52: 79.21840476 | C52: 80.36149474
A53: 0.172 | B53: 81.97075998 | C53: 83.12113705
A54: 0.176 | B54: 79.91798862 | C54: 80.98599993
A55: 0.18 | B55: 75.96716179 | C55: 77.00422458
A56: 0.184 | B56: 76.84978581 | C56: 77.82780664
A57: 0.188 | B57: 83.18605267 | C57: 84.43388528
A58: 0.192 | B58: 88.97374665 | C58: 90.42891733
A59: 0.196 | B59: 86.26994237 | C59: 87.63630133
A60: 0.2 | B60: 91.9405875 | C60: 93.4986243
A61: 0.204 | B61: 85.39274153 | C61: 86.9861136
A62: 0.208 | B62: 87.9918665 | C62: 89.58660381
A63: 0.212 | B63: 87.26115095 | C63: 88.75869935
A64: 0.216 | B64: 88.9144325 | C64: 90.36778187
A65: 0.22 | B65: 88.34807385 | C65: 89.70604017
A66: 0.224 | B66: 90.36869505 | C66: 91.69145995
A67: 0.228 | B67: 83.82435366 | C67: 85.2025199
A68: 0.232 | B68: 88.74711682 | C68: 90.26755857
A69: 0.236 | B69: 83.80076987 | C69: 85.29047945
A70: 0.24 | B70: 83.03358973 | C70: 84.43044215
A71: 0.244 | B71: 82.86231268 | C71: 84.17393236
A72: 0.248 | B72: 77.04691869 | C72: 78.39215596
A73: 0.252 | B73: 75.44563215 | C73: 76.70451755
A74: 0.256 | B74: 76.28636117 | C74: 77.48807967
A75: 0.26 | B75: 78.19220974 | C75: 79.37051373
A76: 0.264 | B76: 81.40152855 | C76: 82.61497066
A77: 0.268 | B77: 76.74886451 | C77: 77.94893597
A78: 0.272 | B78: 78.87745501 | C78: 80.06256839
A79: 0.276 | B79: 83.00263563 | C79: 84.27852063
A80: 0.28 | B80: 87.03692847 | C80: 88.38934496
A81: 0.284 | B81: 89.96792819 | C81: 91.32702884
A82: 0.288 | B82: 88.58120963 | C82: 89.84206643
A83: 0.292 | B83: 87.75289324 | C83: 88.91869251
A84: 0.296 | B84: 84.49516208 | C84: 85.59428077
A85: 0.3 | B85: 85.13112042 | C85: 86.15646749
A86: 0.304 | B86: 81.59678848 | C86: 82.57183978
A87: 0.308 | B87: 79.32498293 | C87: 80.22593563
A88: 0.312 | B88: 80.56203187 | C88: 81.40702284
A89: 0.316 | B89: 89.1983052 | C89: 90.53004973
A90: 0.32 | B90: 87.58721316 | C90: 88.82249354
A91: 0.324 | B91: 83.37095704 | C91: 84.56513953
A92: 0.328 | B92: 79.32789358 | C92: 80.48310226
A93: 0.332 | B93: 79.3251675 | C93: 80.40150443
A94: 0.336 | B94: 79.23935159 | C94: 80.23590142
A95: 0.34 | B95: 80.6350131 | C95: 81.58164523
A96: 0.344 | B96: 84.39380962 | C96: 85.39087487
A97: 0.348 | B97: 78.37030503 | C97: 79.43074188
A98: 0.352 | B98: 81.65684999 | C98: 82.75145282
A99: 0.356 | B99: 80.97354362 | C99: 81.98149477
A100: 0.36 | B100: 81.08667476 | C100: 82.01569942
A101: 0.364 | B101: 81.34372256 | C101: 82.1955137
A102: 0.368 | B102: 82.21315406 | C102: 82.99738399
A103: 0.372 | B103: 79.07018154 | C103: 79.80606717
A104: 0.376 | B104: 79.33233783 | C104: 79.99267116
A105: 0.38 | B105: 77.69888006 | C105: 78.28570019
A106: 0.384 | B106: 83.17686889 | C106: 83.92199704
A107: 0.388 | B107: 84.4977723 | C107: 85.18185305
A108: 0.392 | B108: 86.05881236 | C108: 86.6851642
A109: 0.396 | B109: 87.05759249 | C109: 87.61117324
A110: 0.4 | B110: 82.18135451 | C110: 82.75768704
A111: 0.404 | B111: 91.13903909 | C111: 92.19776541
A112: 0.408 | B112: 88.28694511 | C112: 89.26969029
A113: 0.412 | B113: 91.1702203 | C113: 92.14284329
A114: 0.416 | B114: 92.79599702 | C114: 93.70882228
A115: 0.42 | B115: 94.56601121 | C115: 95.41984645
A116: 0.424 | B116: 98.48810107 | C116: 99.3631396
A117: 0.428 | B117: 96.07189314 | C117: 96.86015358
A118: 0.432 | B118: 101.732018 | C118: 102.6375383
A119: 0.436 | B119: 102.855752 | C119: 103.6759071
A120: 0.44 | B120: 100.9554656 | C120: 101.6783602
A121: 0.444 | B121: 109.3182562 | C121: 110.3515228
A122: 0.448 | B122: 110.543313 | C122: 111.4858041
A123: 0.452 | B123: 114.9595912 | C123: 115.9162473
A124: 0.456 | B124: 122.416333 | C124: 123.5630991
A125: 0.46 | B125: 125.113823 | C125: 126.1923494
A126: 0.464 | B126: 124.5834308 | C126: 125.5354324
A127: 0.468 | B127: 121.1300727 | C127: 121.9838682
A128: 0.472 | B128: 120.1568508 | C128: 120.8891837
A129: 0.476 | B129: 119.1470026 | C129: 119.7600158
A130: 0.48 | B130: 129.7943049 | C130: 130.8265774
A131: 0.484 | B131: 116.2812052 | C131: 117.7755809
A132: 0.488 | B132: 110.501202 | C132: 111.9546458
A133: 0.492 | B133: 116.8255321 | C133: 118.4329498
A134: 0.496 | B134: 113.3615904 | C134: 114.8602787
A135: 0.5 | B135: 116.9258045 | C135: 118.4128837
A136: 0.504 | B136: 121.4585777 | C136: 122.9728705
A137: 0.508 | B137: 123.7702734 | C137: 125.2130337
A138: 0.512 | B138: 126.9150426 | C138: 128.3094174
A139: 0.516 | B139: 124.3513984 | C139: 125.6204404
A140: 0.52 | B140: 124.6163204 | C140: 125.7650412
A141: 0.524 | B141: 128.5111298 | C141: 129.6307237
A142: 0.528 | B142: 131.2637847 | C142: 132.3075855
A143: 0.532 | B143: 132.0389674 | C143: 132.9608786
A144: 0.536 | B144: 135.7161529 | C144: 136.5818658
A145: 0.54 | B145: 139.3531297 | C145: 140.1541084
A146: 0.544 | B146: 144.2538882 | C146: 145.0285331
A147: 0.548 | B147: 140.8277662 | C147: 141.4858715
A148: 0.552 | B148: 139.9100254 | C148: 140.4291518
A149: 0.556 | B149: 137.5087633 | C149: 137.9043325
A150: 0.56 | B150: 145.0570835 | C150: 145.5432913
A151: 0.564 | B151: 148.3869717 | C151: 148.7771109
A152: 0.568 | B152: 148.0831365 | C152: 148.3273565
A153: 0.572 | B153: 149.4689649 | C153: 149.5753303
A154: 0.576 | B154: 153.1405758 | C154: 153.1448978
A155: 0.58 | B155: 141.4978174 | C155: 141.7943701
A156: 0.584 | B156: 155.068148 | C156: 155.9137214
A157: 0.588 | B157: 161.1565701 | C157: 161.9982716
A158: 0.592 | B158: 164.5352093 | C158: 165.2683662
A159: 0.596 | B159: 169.9296215 | C159: 170.6093392
A160: 0.6 | B160: 175.3819031 | C160: 175.999632
A161: 0.604 | B161: 168.5733893 | C161: 169.1322293
A162: 0.608 | B162: 166.5612138 | C162: 166.9616816
A163: 0.612 | B163: 173.0234321 | C163: 173.3967278
A164: 0.616 | B164: 171.978049 | C164: 172.1834252
A165: 0.62 | B165: 167.4444208 | C165: 167.53942
A166: 0.624 | B166: 160.4740786 | C166: 160.550875
A167: 0.628 | B167: 151.0571279 | C167: 151.2522244
A168: 0.632 | B168: 163.2085734 | C168: 163.7615683
A169: 0.636 | B169: 171.9913826 | C169: 172.6462881
A170: 0.64 | B170: 173.4834254 | C170: 173.9799436
A171: 0.644 | B171: 166.7199439 | C171: 167.1637214
A172: 0.648 | B172: 165.3882287 | C172: 165.6713425
A173: 0.652 | B173: 165.6840925 | C173: 165.8054091
A174: 0.656 | B174: 179.4260292 | C174: 179.9673523
A175: 0.66 | B175: 180.9779851 | C175: 181.352929
A176: 0.664 | B176: 189.8361725 | C176: 190.2637432
A177: 0.668 | B177: 192.8918849 | C177: 193.1617282
A178: 0.672 | B178: 191.410746 | C178: 191.4964387
A179: 0.676 | B179: 190.4517903 | C179: 190.3528158
A180: 0.68 | B180: 181.2563187 | C180: 181.2028033
A181: 0.684 | B181: 170.5790644 | C181: 170.669669
A182: 0.688 | B182: 168.9908268 | C182: 168.9223378
A183: 0.692 | B183: 170.323694 | C183: 170.0931598
A184: 0.696 | B184: 158.7522501 | C184: 158.7655092
A185: 0.7 | B185: 168.8891985 | C185: 169.0682055
A186: 0.704 | B186: 165.1297773 | C186: 165.1844167
A187: 0.708 | B187: 172.8329606 | C187: 172.9031818
A188: 0.712 | B188: 172.8944544 | C188: 172.7952891
A189: 0.716 | B189: 181.8241324 | C189: 181.7761054
A190: 0.72 | B190: 179.2762449 | C190: 179.0710791
A191: 0.724 | B191: 183.2276182 | C191: 182.8824347
A192: 0.728 | B192: 181.3747351 | C192: 180.8650272
A193: 0.732 | B193: 183.9981042 | C193: 183.3202923
A194: 0.736 | B194: 176.5273829 | C194: 175.853751
A195: 0.74 | B195: 172.58052 | C195: 171.7971343
A196: 0.744 | B196: 180.148026 | C196: 179.3220697
A197: 0.748 | B197: 175.4182517 | C197: 174.5041507
A198: 0.752 | B198: 163.2240084 | C198: 162.6260315
A199: 0.756 | B199: 170.6631077 | C199: 170.0426505
A200: 0.76 | B200: 162.3445407 | C200: 161.794445
A201: 0.764 | B201: 154.3792879 | C201: 153.8968839
A202: 0.768 | B202: 150.6791067 | C202: 150.1049437
A203: 0.772 | B203: 137.9088796 | C203: 137.772466
... 307 more rows

Sheet Aufgabe 2
A1: Date | B1: DAX Adj Close | C1: ret | D1: ret^2 | E1: sum ret^2 | G1: Zeitraum | H1: Vols
A2: 2018-06-15 | B2: 13010.54981 | C2: 0 | D2: =C2^2 -> 0 | E2: jahr 1+2: | G2: Jahr 1 | H2: =F252 -> 0.1508756015
A3: 2018-06-18 | B3: 12834.11035 | C3: =(B3-B2)/B2 -> -0.01356126087 | D3: =C3^2 -> 0.0001839077963 | E3: =SUM(D3:D503) -> 0.1155459813 | G3: Jahr 2 | H3: =F503 -> 0.3046022556
A4: 2018-06-19 | B4: 12677.96973 | C4: =(B4-B3)/B3 -> -0.01216606494 | D4: 0.0001480131362 | G4: Jahr 1+2 | H4: =SQRT(1/2*E3) -> 0.240360127
A5: 2018-06-20 | B5: 12695.16016 | C5: 0.001355929251 | D5: 1.838544134e-06
A6: 2018-06-21 | B6: 12511.91016 | C6: -0.01443463475 | D6: 0.0002083586804
A7: 2018-06-22 | B7: 12579.71973 | C7: 0.005419601734 | D7: 2.937208296e-05
A8: 2018-06-25 | B8: 12270.33008 | C8: -0.0245943198 | D8: 0.0006048805663
A9: 2018-06-26 | B9: 12234.33984 | C9: -0.002933110989 | D9: 8.603140076e-06
A10: 2018-06-27 | B10: 12348.61035 | C10: 0.009340145157 | D10: 8.723831155e-05
A11: 2018-06-28 | B11: 12177.23047 | C11: -0.013878475 | D11: 0.0001926120683
A12: 2018-06-29 | B12: 12306 | C12: 0.01057461549 | D12: 0.0001118224928
A13: 2018-07-02 | B13: 12238.16992 | C13: -0.005511951893 | D13: 3.038161367e-05
A14: 2018-07-03 | B14: 12349.13965 | C14: 0.009067510153 | D14: 8.221974037e-05
A15: 2018-07-04 | B15: 12317.61035 | C15: -0.00255315762 | D15: 6.518613833e-06
A16: 2018-07-05 | B16: 12464.29004 | C16: 0.01190812875 | D16: 0.0001418035304
A17: 2018-07-06 | B17: 12496.16992 | C17: 0.002557697221 | D17: 6.541815076e-06
A18: 2018-07-09 | B18: 12543.88965 | C18: 0.003818748489 | D18: 1.458284002e-05
A19: 2018-07-10 | B19: 12609.84961 | C19: 0.005258333885 | D19: 2.765007525e-05
A20: 2018-07-11 | B20: 12417.12988 | C20: -0.0152832695 | D20: 0.0002335783267
A21: 2018-07-12 | B21: 12492.96973 | C21: 0.006107679531 | D21: 3.730374925e-05
A22: 2018-07-13 | B22: 12540.73047 | C22: 0.003823009343 | D22: 1.461540044e-05
A23: 2018-07-16 | B23: 12561.01953 | C23: 0.001617853127 | D23: 2.617448739e-06
A24: 2018-07-17 | B24: 12661.54004 | C24: 0.008002575727 | D24: 6.404121827e-05
A25: 2018-07-18 | B25: 12765.94043 | C25: 0.008245473273 | D25: 6.79878295e-05
A26: 2018-07-19 | B26: 12686.29004 | C26: -0.006239288867 | D26: 3.892872556e-05
A27: 2018-07-20 | B27: 12561.41992 | C27: -0.009842918584 | D27: 9.688304626e-05
A28: 2018-07-23 | B28: 12548.57031 | C28: -0.001022942476 | D28: 1.04641131e-06
A29: 2018-07-24 | B29: 12689.38965 | C29: 0.01122194294 | D29: 0.0001259320034
A30: 2018-07-25 | B30: 12579.33008 | C30: -0.00867335412 | D30: 7.522707169e-05
A31: 2018-07-26 | B31: 12809.23047 | C31: 0.018276044 | D31: 0.0003340137842
A32: 2018-07-27 | B32: 12860.40039 | C32: 0.00399476925 | D32: 1.595818136e-05
A33: 2018-07-30 | B33: 12798.2002 | C33: -0.004836567145 | D33: 2.339238175e-05
A34: 2018-07-31 | B34: 12805.5 | C34: 0.0005703770754 | D34: 3.253300081e-07
A35: 2018-08-01 | B35: 12737.04981 | C35: -0.005345374253 | D35: 2.857302591e-05
A36: 2018-08-02 | B36: 12546.33008 | C36: -0.01497361892 | D36: 0.0002242092635
A37: 2018-08-03 | B37: 12615.75977 | C37: 0.005533864449 | D37: 3.062365574e-05
A38: 2018-08-06 | B38: 12598.20996 | C38: -0.001391102107 | D38: 1.935165073e-06
A39: 2018-08-07 | B39: 12648.19043 | C39: 0.003967267585 | D39: 1.573921209e-05
A40: 2018-08-08 | B40: 12633.54004 | C40: -0.00115829929 | D40: 1.341657246e-06
A41: 2018-08-09 | B41: 12676.11035 | C41: 0.003369626396 | D41: 1.135438205e-05
A42: 2018-08-10 | B42: 12424.34961 | C42: -0.01986104042 | D42: 0.0003944609265
A43: 2018-08-13 | B43: 12358.74023 | C43: -0.005280709418 | D43: 2.788589196e-05
A44: 2018-08-14 | B44: 12358.87012 | C44: 1.050997089e-05 | D44: 1.10459488e-10
A45: 2018-08-15 | B45: 12163.00977 | C45: -0.01584775534 | D45: 0.0002511513495
A46: 2018-08-16 | B46: 12237.16992 | C46: 0.006097187407 | D46: 3.717569428e-05
A47: 2018-08-17 | B47: 12210.54981 | C47: -0.002175348563 | D47: 4.73214137e-06
A48: 2018-08-20 | B48: 12331.29981 | C48: 0.009888989593 | D48: 9.779211518e-05
A49: 2018-08-21 | B49: 12384.49023 | C49: 0.004313447959 | D49: 1.86058333e-05
A50: 2018-08-22 | B50: 12385.7002 | C50: 9.770042832e-05 | D50: 9.545373694e-09
A51: 2018-08-23 | B51: 12365.58008 | C51: -0.00162446367 | D51: 2.638882215e-06
A52: 2018-08-24 | B52: 12394.51953 | C52: 0.002340322881 | D52: 5.477111188e-06
A53: 2018-08-27 | B53: 12538.30957 | C53: 0.01160109834 | D53: 0.0001345854828
A54: 2018-08-28 | B54: 12527.41992 | C54: -0.0008685102198 | D54: 7.543100018e-07
A55: 2018-08-29 | B55: 12561.67969 | C55: 0.002734782598 | D55: 7.47903586e-06
A56: 2018-08-30 | B56: 12494.24023 | C56: -0.005368665789 | D56: 2.882257235e-05
A57: 2018-08-31 | B57: 12364.05957 | C57: -0.0104192538 | D57: 0.0001085608498
A58: 2018-09-03 | B58: 12346.41016 | C58: -0.001427476946 | D58: 2.037690432e-06
A59: 2018-09-04 | B59: 12210.20996 | C59: -0.01103156288 | D59: 0.0001216953795
A60: 2018-09-05 | B60: 12040.45996 | C60: -0.01390229984 | D60: 0.0001932739409
A61: 2018-09-06 | B61: 11955.25 | C61: -0.007076968844 | D61: 5.008348801e-05
A62: 2018-09-07 | B62: 11959.62988 | C62: 0.0003663562033 | D62: 1.342168677e-07
A63: 2018-09-10 | B63: 11986.33984 | C63: 0.002233343362 | D63: 4.987822571e-06
A64: 2018-09-11 | B64: 11970.26953 | C64: -0.001340718703 | D64: 1.79752664e-06
A65: 2018-09-12 | B65: 12032.29981 | C65: 0.005182028679 | D65: 2.685342123e-05
A66: 2018-09-13 | B66: 12055.54981 | C66: 0.001932298926 | D66: 3.733779139e-06
A67: 2018-09-14 | B67: 12124.33008 | C67: 0.005705278572 | D67: =C67^2 -> 3.255020358e-05
A68: 2018-09-17 | B68: 12096.41016 | C68: =(B68-B67)/B67 -> -0.002302801047 | D68: 5.302892661e-06
A69: 2018-09-18 | B69: 12157.66992 | C69: 0.005064292562 | D69: 2.564705915e-05
A70: 2018-09-19 | B70: 12219.01953 | C70: 0.005046165129 | D70: 2.546378251e-05
A71: 2018-09-20 | B71: 12326.48047 | C71: 0.008794563241 | D71: 7.73443426e-05
A72: 2018-09-21 | B72: 12430.87988 | C72: 0.008469523012 | D72: 7.173282005e-05
A73: 2018-09-24 | B73: 12350.82031 | C73: -0.006440378378 | D73: 4.147847365e-05
A74: 2018-09-25 | B74: 12374.66016 | C74: 0.001930224018 | D74: 3.725764758e-06
A75: 2018-09-26 | B75: 12385.88965 | C75: 0.0009074584558 | D75: 8.23480849e-07
A76: 2018-09-27 | B76: 12435.58984 | C76: 0.004012645955 | D76: 1.610132756e-05
A77: 2018-09-28 | B77: 12246.73047 | C77: -0.0151870054 | D77: 0.0002306451329
A78: 2018-10-01 | B78: 12339.03027 | C78: 0.007536689096 | D78: 5.680168254e-05
A79: 2018-10-02 | B79: 12287.58008 | C79: -0.00416971098 | D79: 1.738648966e-05
A80: 2018-10-04 | B80: 12244.13965 | C80: -0.003535312056 | D80: 1.249843134e-05
A81: 2018-10-05 | B81: 12111.90039 | C81: -0.01080020841 | D81: 0.0001166445017
A82: 2018-10-08 | B82: 11947.16016 | C82: -0.0136015179 | D82: 0.0001850012893
A83: 2018-10-09 | B83: 11977.21973 | C83: 0.00251604311 | D83: 6.330472929e-06
A84: 2018-10-10 | B84: 11712.5 | C84: -0.02210193484 | D84: 0.0004884955235
A85: 2018-10-11 | B85: 11539.34961 | C85: -0.01478338442 | D85: 0.0002185484549
A86: 2018-10-12 | B86: 11523.80957 | C86: -0.001346699816 | D86: 1.813600395e-06
A87: 2018-10-15 | B87: 11614.16016 | C87: 0.007840340423 | D87: 6.147093795e-05
A88: 2018-10-16 | B88: 11776.54981 | C88: 0.01398203983 | D88: 0.0001954974379
A89: 2018-10-17 | B89: 11715.03027 | C89: -0.005223901821 | D89: 2.728915024e-05
A90: 2018-10-18 | B90: 11589.20996 | C90: -0.01074007554 | D90: 0.0001153492225
A91: 2018-10-19 | B91: 11553.83008 | C91: -0.003052829323 | D91: 9.319766877e-06
A92: 2018-10-22 | B92: 11524.33984 | C92: -0.002552421128 | D92: 6.514853612e-06
A93: 2018-10-23 | B93: 11274.28027 | C93: -0.02169838563 | D93: 0.000470819939
A94: 2018-10-24 | B94: 11191.62988 | C94: -0.00733087949 | D94: 5.37417941e-05
A95: 2018-10-25 | B95: 11307.12012 | C95: 0.01031934055 | D95: 0.0001064887893
A96: 2018-10-26 | B96: 11200.62012 | C96: -0.009418843956 | D96: 8.871462146e-05
A97: 2018-10-29 | B97: 11335.48047 | C97: 0.01204043603 | D97: 0.0001449720997
A98: 2018-10-30 | B98: 11287.38965 | C98: -0.004242503891 | D98: 1.799883926e-05
A99: 2018-10-31 | B99: 11447.50977 | C99: 0.01418575286 | D99: 0.0002012355842
A100: 2018-11-01 | B100: 11468.54004 | C100: 0.00183710435 | D100: 3.374952394e-06
A101: 2018-11-02 | B101: 11518.99023 | C101: 0.004399007182 | D101: 1.935126418e-05
A102: 2018-11-05 | B102: 11494.95996 | C102: -0.002086143796 | D102: 4.351995936e-06
A103: 2018-11-06 | B103: 11484.33984 | C103: -0.0009238936053 | D103: 8.535793939e-07
A104: 2018-11-07 | B104: 11579.09961 | C104: 0.008251216119 | D104: 6.808256744e-05
A105: 2018-11-08 | B105: 11527.32031 | C105: -0.004471789841 | D105: 1.999690438e-05
A106: 2018-11-09 | B106: 11529.16016 | C106: 0.0001596077797 | D106: 2.547464332e-08
A107: 2018-11-12 | B107: 11325.44043 | C107: -0.01766995403 | D107: 0.0003122272753
A108: 2018-11-13 | B108: 11472.21973 | C108: 0.01296014057 | D108: 0.0001679652436
A109: 2018-11-14 | B109: 11412.53027 | C109: -0.005202956481 | D109: 2.707075615e-05
A110: 2018-11-15 | B110: 11353.66992 | C110: -0.005157519727 | D110: 2.660000973e-05
A111: 2018-11-16 | B111: 11341 | C111: -0.001115931685 | D111: 1.245303525e-06
A112: 2018-11-19 | B112: 11244.54004 | C112: -0.008505419275 | D112: 7.234215705e-05
A113: 2018-11-20 | B113: 11066.41016 | C113: -0.01584145544 | D113: 0.0002509517105
A114: 2018-11-21 | B114: 11244.16992 | C114: 0.01606300123 | D114: 0.0002580200085
A115: 2018-11-22 | B115: 11138.49023 | C115: -0.009398620863 | D115: 8.833407413e-05
A116: 2018-11-23 | B116: 11192.69043 | C116: 0.004866027521 | D116: 2.367822383e-05
A117: 2018-11-26 | B117: 11354.71973 | C117: 0.01447634963 | D117: 0.0002095646987
A118: 2018-11-27 | B118: 11309.11035 | C118: -0.00401677726 | D118: 1.613449955e-05
A119: 2018-11-28 | B119: 11298.87988 | C119: -0.000904621998 | D119: 8.183409592e-07
A120: 2018-11-29 | B120: 11298.23047 | C120: -5.747560881e-05 | D120: 3.303445608e-09
A121: 2018-11-30 | B121: 11257.24023 | C121: -0.003628023 | D121: 1.316255089e-05
A122: 2018-12-03 | B122: 11465.45996 | C122: 0.01849651653 | D122: 0.0003421211238
A123: 2018-12-04 | B123: 11335.32031 | C123: -0.01135058257 | D123: 0.0001288357247
A124: 2018-12-05 | B124: 11200.24023 | C124: -0.01191674133 | D124: 0.0001420087239
A125: 2018-12-06 | B125: 10810.98047 | C125: -0.03475459026 | D125: 0.001207881544
A126: 2018-12-07 | B126: 10788.08984 | C126: -0.002117350046 | D126: 4.483171219e-06
A127: 2018-12-10 | B127: 10622.07031 | C127: -0.01538914974 | D127: 0.0002368259298
A128: 2018-12-11 | B128: 10780.50977 | C128: 0.01491606206 | D128: 0.0002224889075
A129: 2018-12-12 | B129: 10929.42969 | C129: 0.01381381059 | D129: 0.0001908213629
A130: 2018-12-13 | B130: 10924.7002 | C130: -0.000432729807 | D130: 1.872550858e-07
A131: 2018-12-14 | B131: 10865.76953 | C131: -0.005394259698 | D131: =C131^2 -> 2.909803769e-05
A132: 2018-12-17 | B132: 10772.2002 | C132: =(B132-B131)/B131 -> -0.008611385484 | D132: 7.415595995e-05
A133: 2018-12-18 | B133: 10740.88965 | C133: -0.002906606767 | D133: 8.4483629e-06
A134: 2018-12-19 | B134: 10766.20996 | C134: 0.00235737549 | D134: 5.5572192e-06
A135: 2018-12-20 | B135: 10611.09961 | C135: -0.01440714519 | D135: 0.0002075658324
A136: 2018-12-21 | B136: 10633.82031 | C136: 0.002141220122 | D136: 4.58482361e-06
A137: 2018-12-27 | B137: 10381.50977 | C137: -0.02372717731 | D137: 0.0005629789432
A138: 2018-12-28 | B138: 10558.95996 | C138: 0.01709290787 | D138: 0.0002921674993
A139: 2019-01-02 | B139: 10580.19043 | C139: 0.002010659201 | D139: 4.042750424e-06
A140: 2019-01-03 | B140: 10416.66016 | C140: -0.01545626906 | D140: 0.0002388962533
A141: 2019-01-04 | B141: 10767.69043 | C141: 0.03369892697 | D141: 0.001135617679
A142: 2019-01-07 | B142: 10747.80957 | C142: -0.001846343942 | D142: 3.408985954e-06
A143: 2019-01-08 | B143: 10803.98047 | C143: 0.005226264909 | D143: 2.731384489e-05
A144: 2019-01-09 | B144: 10893.32031 | C144: 0.008269159709 | D144: 6.837900229e-05
A145: 2019-01-10 | B145: 10921.58984 | C145: 0.002595125196 | D145: 6.734674781e-06
A146: 2019-01-11 | B146: 10887.45996 | C146: -0.00312499192 | D146: 9.765574498e-06
A147: 2019-01-14 | B147: 10855.91016 | C147: -0.002897810887 | D147: 8.397307935e-06
A148: 2019-01-15 | B148: 10891.79004 | C148: 0.003305101044 | D148: 1.092369291e-05
A149: 2019-01-16 | B149: 10931.24023 | C149: 0.003622011612 | D149: 1.311896812e-05
A150: 2019-01-17 | B150: 10918.62012 | C150: -0.001154499374 | D150: 1.332868804e-06
A151: 2019-01-18 | B151: 11205.54004 | C151: 0.02627803851 | D151: 0.000690535308
A152: 2019-01-21 | B152: 11136.2002 | C152: -0.006187996273 | D152: 3.829129787e-05
A153: 2019-01-22 | B153: 11090.11035 | C153: -0.004138741148 | D153: 1.712917829e-05
A154: 2019-01-23 | B154: 11071.54004 | C154: -0.001674492806 | D154: 2.803926158e-06
A155: 2019-01-24 | B155: 11130.17969 | C155: 0.005296431191 | D155: 2.805218336e-05
A156: 2019-01-25 | B156: 11281.79004 | C156: 0.01362155457 | D156: 0.0001855467489
A157: 2019-01-28 | B157: 11210.30957 | C157: -0.006335915643 | D157: 4.014382704e-05
A158: 2019-01-29 | B158: 11218.83008 | C158: 0.0007600601881 | D158: 5.776914895e-07
A159: 2019-01-30 | B159: 11181.66016 | C159: -0.003313172562 | D159: 1.097711243e-05
A160: 2019-01-31 | B160: 11173.09961 | C160: -0.0007655884616 | D160: 5.861256925e-07
A161: 2019-02-01 | B161: 11180.66016 | C161: 0.0006766743575 | D161: 4.578881861e-07
A162: 2019-02-04 | B162: 11176.58008 | C162: -0.0003649229957 | D162: 1.331687928e-07
A163: 2019-02-05 | B163: 11367.98047 | C163: 0.01712513028 | D163: 0.0002932700872
A164: 2019-02-06 | B164: 11324.71973 | C164: -0.003805490352 | D164: 1.448175682e-05
A165: 2019-02-07 | B165: 11022.01953 | C165: -0.02672915597 | D165: 0.000714447779
A166: 2019-02-08 | B166: 10906.78027 | C166: -0.01045536707 | D166: 0.0001093147005
A167: 2019-02-11 | B167: 11014.58984 | C167: 0.009884637568 | D167: 9.770605985e-05
A168: 2019-02-12 | B168: 11126.08008 | C168: 0.01012205099 | D168: 0.0001024559163
A169: 2019-02-13 | B169: 11167.21973 | C169: 0.003697587084 | D169: 1.367215024e-05
A170: 2019-02-14 | B170: 11089.79004 | C170: -0.006933658679 | D170: 4.807562268e-05
A171: 2019-02-15 | B171: 11299.79981 | C171: 0.01893721786 | D171: 0.0003586182202
A172: 2019-02-18 | B172: 11299.2002 | C172: -5.306377193e-05 | D172: 2.815763892e-09
A173: 2019-02-19 | B173: 11309.20996 | C173: 0.0008858821707 | D173: 7.847872203e-07
A174: 2019-02-20 | B174: 11401.96973 | C174: 0.008202144122 | D174: 6.72751682e-05
A175: 2019-02-21 | B175: 11423.28027 | C175: 0.001869022678 | D175: 3.493245771e-06
A176: 2019-02-22 | B176: 11457.7002 | C176: 0.003013138887 | D176: 9.079005953e-06
A177: 2019-02-25 | B177: 11505.38965 | C177: 0.004162218348 | D177: 1.732406158e-05
A178: 2019-02-26 | B178: 11540.79004 | C178: 0.003076852769 | D178: 9.46702296e-06
A179: 2019-02-27 | B179: 11487.33008 | C179: -0.004632261727 | D179: 2.145784871e-05
A180: 2019-02-28 | B180: 11515.63965 | C180: 0.002464416866 | D180: 6.073350492e-06
A181: 2019-03-01 | B181: 11601.67969 | C181: 0.007471581485 | D181: 5.582452989e-05
A182: 2019-03-04 | B182: 11592.66016 | C182: -0.0007774331167 | D182: 6.044022509e-07
A183: 2019-03-05 | B183: 11620.74023 | C183: 0.002422228342 | D183: 5.867190141e-06
A184: 2019-03-06 | B184: 11587.62988 | C184: -0.002849246205 | D184: 8.118203937e-06
A185: 2019-03-07 | B185: 11517.79981 | C185: -0.006026259962 | D185: 3.631580913e-05
A186: 2019-03-08 | B186: 11457.83984 | C186: -0.005205852766 | D186: 2.710090302e-05
A187: 2019-03-11 | B187: 11543.48047 | C187: 0.007474413257 | D187: 5.586685354e-05
A188: 2019-03-12 | B188: 11524.16992 | C188: -0.001672853352 | D188: 2.798438338e-06
A189: 2019-03-13 | B189: 11572.41016 | C189: 0.004186005616 | D189: 1.752264301e-05
A190: 2019-03-14 | B190: 11587.46973 | C190: 0.001301333931 | D190: 1.693469999e-06
A191: 2019-03-15 | B191: 11685.69043 | C191: 0.008476457957 | D191: 7.185033951e-05
A192: 2019-03-18 | B192: 11657.05957 | C192: -0.002450078596 | D192: 6.002885126e-06
A193: 2019-03-19 | B193: 11788.41016 | C193: 0.01126790073 | D193: 0.0001269655868
A194: 2019-03-20 | B194: 11603.88965 | C194: -0.01565270528 | D194: 0.0002450071827
A195: 2019-03-21 | B195: 11549.95996 | C195: -0.004647552814 | D195: =C195^2 -> 2.159974716e-05
A196: 2019-03-22 | B196: 11364.16992 | C196: =(B196-B195)/B195 -> -0.01608577351 | D196: 0.0002587521095
A197: 2019-03-25 | B197: 11346.65039 | C197: -0.001541646255 | D197: 2.376673176e-06
A198: 2019-03-26 | B198: 11419.48047 | C198: 0.006418641405 | D198: 4.119895748e-05
A199: 2019-03-27 | B199: 11419.04004 | C199: -3.85683045e-05 | D199: 1.487514112e-09
A200: 2019-03-28 | B200: 11428.16016 | C200: 0.0007986765935 | D200: 6.37884301e-07
... 303 more rows

Sheet Sheet2
